fUSD/lending_fUSD_20240814
["ID","MTS","AMOUNT","RATE_DAILY","PERIOD"]
[334895825,1723630245877,-14448.00207532,0.00010136,2]
[334895826,1723630245886,-242.44,0.00010155,2]
[334895827,1723630245895,-848.95795804,0.00010181,2]
[334895828,1723630245906,-151.04204196,0.00010181,2]
[334895829,1723630245916,-1257.73185636,0.00010185,2]
[334895830,1723630245927,-8422.99297802,0.00010186,2]
[334895831,1723630245938,-1523.79702198,0.00010186,2]
[334895832,1723630245947,-503.0,0.00010186,2]
[334895833,1723630245956,-750.01,0.00010343,2]
[334895834,1723630245965,-721.86,0.00010478,2]
[334895835,1723630245974,-193.95,0.00010611,2]
[334895836,1723630245983,-530.45,0.000108,2]
[334895837,1723630245993,-151.0,0.000108,2]
[334895838,1723630246003,-250.0,0.00010837,2]
[334895839,1723630246012,-1299.63,0.00010862,2]
[334895840,1723630246021,-155.23222634,0.00010899,2]
[334895841,1723630246030,-512.0,0.000109,2]
[334895842,1723630246039,-221.26585747,0.000109,2]
[334895843,1723630246048,-224.13942634,0.000109,2]
[334895844,1723630246060,-667.31614115,0.000109,2]
[334895845,1723630246070,-539.13,0.00010984,2]
[334895846,1723630246080,-151.84,0.0001099,2]
[334895847,1723630246090,-155.0,0.00010997,2]
[334895848,1723630246099,-175.57,0.00010998,2]
[334895849,1723630246108,-1648.60797885,0.00011,2]
[334895870,1723630426787,692.19,9.533e-05,2]
[334895882,1723630512580,150.0,9.533e-05,2]
[334895883,1723630512602,150.0,9.533e-05,2]
[334895884,1723630512624,150.0,9.533e-05,2]
[334895885,1723630512645,150.0,9.533e-05,2]
[334895886,1723630512667,93.27901704,9.533e-05,2]
[334895897,1723630593296,150.0,9.533e-05,2]
[334895898,1723630593318,150.0,9.533e-05,2]
[334895899,1723630593338,112.04342654,9.533e-05,2]
[334895935,1723630905005,150.0,9.04e-05,2]
[334895936,1723630905027,150.0,9.04e-05,2]
[334895937,1723630905048,150.0,9.04e-05,2]
[334895938,1723630905071,150.0,9.04e-05,2]
[334895939,1723630905093,82.77,9.04e-05,2]
[334895947,1723631116220,-200.0,9.85e-05,2]
[334895948,1723631116241,-200.0,9.85e-05,2]
[334895949,1723631116262,-263.4468,9.866e-05,2]
[334895950,1723631116284,-550.0,0.0001,2]
[334895951,1723631116305,-193.77600294,0.00010899,2]
[334895952,1723631116326,-964.1483,0.000109,2]
[334895953,1723631116348,-286.74291621,0.000109,2]
[334895954,1723631116370,-802.31001075,0.000109,2]
[334895955,1723631116392,-23900.0,0.00010957,2]
[334895956,1723631116413,-163.82212331,0.00010999,2]
[334895957,1723631116434,-5488.506,0.00011,2]
[334895958,1723631116459,-61687.24784679,0.00011,2]
[334895986,1723631386195,709.14,9.435e-05,2]
[334896007,1723631431780,-150.0,9.888e-05,2]
[334896008,1723631431790,-503.17548324,0.0001089,2]
[334896009,1723631431804,-664.57727663,0.0001089,2]
[334896010,1723631431816,-449.40187013,0.0001089,2]
[334896011,1723631431825,-1263.138,0.000109,2]
[334896012,1723631431835,-319.77049608,0.000109,2]
[334896013,1723631431844,-1667.68963379,0.000109,2]
[334896014,1723631431894,-940.83890403,0.000109,2]
[334896015,1723631431903,-163.8221233,0.00010999,2]
[334896016,1723631431913,-2934.19,0.00011,2]
[334896017,1723631431923,-387.73037345,0.00011,2]
[334896025,1723631437965,-1570.0,0.00011,2]
[334896026,1723631437980,-4431.46480826,0.00011,2]
[334896027,1723631437993,-612.86476714,0.00011,2]
[334896028,1723631438005,-479.53282831,0.00011,2]
[334896029,1723631438016,-24519.23672279,0.00011,2]
[334896030,1723631438028,-100009.40740541,0.00011,2]
[334896181,1723631439788,-40.2355432,0.00011,2]
[334896183,1723631439800,-6800.42158823,0.00011,2]
[334896185,1723631439812,-8480.82841177,0.00011,2]
[334896188,1723631439827,-1479.92115932,0.00011,2]
[334896190,1723631439838,-2756.1050545,0.00011,2]
[334896459,1723631442847,-1598.31428799,0.00011,2]
[334896486,1723631443096,-391.25141678,0.00011,2]
[334896489,1723631443108,-1113.8701207,0.00011,2]
[334896493,1723631443120,-2369.51817315,0.00011,2]
[334896574,1723631443813,-614.85463043,0.00011,2]
[334896577,1723631443824,-1258.16789949,0.00011,2]
[334896579,1723631443835,-298.93134934,0.00011,2]
[334896581,1723631443846,-678.98375003,0.00011,2]
[334896806,1723631446183,-6117.41708112,0.00011,2]
[334896810,1723631446215,-1264.7968584,0.00011,2]
[334896812,1723631446226,-1110.68523476,0.00011,2]
[334898215,1723631851550,721.56,9.226e-05,2]
[334898221,1723632324403,150.0,9.086e-05,2]
[334898222,1723632324428,150.0,9.086e-05,2]
[334898223,1723632324453,150.0,9.086e-05,2]
[334898224,1723632324476,150.0,9.086e-05,2]
[334898225,1723632324500,107.29,9.086e-05,2]
[334898232,1723632631967,-550.0,0.0001,2]
[334898233,1723632631977,-1347.62886,0.0001089,2]
[334898234,1723632631987,-150.0,0.00010899,2]
[334898235,1723632631997,-155.0,0.00010899,2]
[334898236,1723632632006,-300.0,0.00010899,2]
[334898237,1723632632016,-155.0,0.00010899,2]
[334898238,1723632632025,-162.44631509,0.000109,2]
[334898239,1723632632035,-152.67384191,0.000109,2]
[334898240,1723632632045,-1370.91077403,0.000109,2]
[334898241,1723632632057,-1294.39292597,0.000109,2]
[334898242,1723632632067,-738.85795625,0.000109,2]
[334898243,1723632632079,-2389.96223375,0.000109,2]
[334898244,1723632632123,-606.84116287,0.000109,2]
[334898245,1723632632188,-578.5596183,0.000109,2]
[334898246,1723632632259,-335.08950845,0.000109,2]
[334898247,1723632632270,-276.52,0.000109,2]
[334898248,1723632632282,-15807.72752038,0.000109,2]
[334898249,1723632632291,-1118.4846,0.000109,2]
[334898250,1723632632300,-212.8275,0.000109,2]
[334898251,1723632632310,-1225.19864699,0.000109,2]
[334898252,1723632632319,-200.0,0.00010943,2]
[334898253,1723632632328,-3110.37,0.00010969,2]
[334898255,1723632632337,-50926.62572337,0.0001099,3]
[334898257,1723632632355,-337.01913656,0.0001099,3]
[334898260,1723632632367,-653.26372546,0.0001099,3]
[334898262,1723632632378,-4351.82270504,0.0001099,3]
[334898264,1723632632392,-3749.97599785,0.0001099,3]
[334898266,1723632632403,-802.81680716,0.0001099,3]
[334898285,1723632638165,-3415.23636571,0.0001099,3]
[334898286,1723632638177,-351.09530479,0.0001099,3]
[334898287,1723632638188,-1273.16035905,0.0001099,3]
[334898288,1723632638200,-3962.55749776,0.0001099,3]
[334898289,1723632638211,-2497.15239399,0.0001099,3]
[334898290,1723632638246,-308.40502696,0.0001099,3]
[334898291,1723632638258,-22590.85096767,0.0001099,3]
[334898292,1723632638269,-659.75132017,0.0001099,3]
[334898434,1723632639977,-82509.47914597,0.0001099,3]
[334898436,1723632639988,-616.89321857,0.0001099,3]
[334898446,1723632640071,-250.0,0.0001099,3]
[334898448,1723632640083,-4031.11821482,0.0001099,3]
[334898455,1723632640138,-15502.56404239,0.0001099,3]
[334898457,1723632640150,-259.20533338,0.0001099,3]
[334898464,1723632640209,-596439.999996,0.0001099,3]
[334898466,1723632640220,-727.33932955,0.0001099,3]
[334898468,1723632640232,-959.24343264,0.0001099,3]
[334898471,1723632640244,-1046.13300407,0.0001099,3]
[334898473,1723632640255,-12680.5478965,0.0001099,3]
[334898475,1723632640266,-1679.44999998,0.0001099,3]
[334898477,1723632640277,-613.13305244,0.0001099,3]
[334898479,1723632640288,-6519.21920943,0.0001099,3]
[334898749,1723632642991,-763.43869,0.0001099,3]
[334898762,1723632643111,-558.39963997,0.0001099,3]
[334898765,1723632643131,-712.72580957,0.0001099,3]
[334898767,1723632643143,-325.95,0.0001099,3]
[334898769,1723632643155,-266.66991768,0.0001099,3]
[334898771,1723632643167,-686.77,0.0001099,3]
[334898773,1723632643179,-293.4,0.0001099,3]
[334898776,1723632643191,-25099.28448745,0.0001099,3]
[334898842,1723632643945,-1120.28121558,0.0001099,3]
[334898844,1723632643956,-686.6132303,0.0001099,3]
[334898846,1723632643968,-906.17357973,0.0001099,3]
[334898849,1723632643983,-406.07,0.0001099,3]
[334898852,1723632643998,-745.8867187,0.0001099,3]
[334898854,1723632644013,-421.401,0.0001099,3]
[334898856,1723632644024,-1519.46514969,0.0001099,3]
[334898858,1723632644035,-3792.97760677,0.0001099,3]
[334899086,1723632646277,-2761.44502665,0.0001099,3]
[334899094,1723632646361,-1539.90017645,0.0001099,3]
[334899096,1723632646377,-1378.9459967,0.0001099,3]
[334899119,1723632646597,-274.70326601,0.0001099,3]
[334900674,1723632780902,150.0,8.231e-05,2]
[334900675,1723632780930,150.0,8.231e-05,2]
[334900676,1723632780961,150.0,8.231e-05,2]
[334900677,1723632780989,150.0,8.231e-05,2]
[334900678,1723632781017,122.9,8.231e-05,2]
[334900686,1723633293503,150.0,8.219e-05,2]
[334900687,1723633293527,150.0,8.219e-05,2]
[334900688,1723633293551,150.0,8.219e-05,2]
[334900689,1723633293575,150.0,8.219e-05,2]
[334900690,1723633293602,149.16,8.219e-05,2]
[334900698,1723633748625,150.0,8.219e-05,2]
[334900699,1723633748649,150.0,8.219e-05,2]
[334900700,1723633748673,249.50468156,8.219e-05,2]
[334900701,1723633748697,150.0,8.219e-05,2]
[334900702,1723633748727,19.70531844,8.219e-05,2]
[334900716,1723633833618,-545.50957243,9.658e-05,2]
[334900718,1723633833630,-152.76042757,9.658e-05,2]
[334900721,1723633833640,-200.0,9.664e-05,2]
[334900723,1723633833649,-500.0,9.664e-05,2]
[334900725,1723633833658,-250.0,9.679e-05,2]
[334900727,1723633833667,-1000.0,9.708e-05,2]
[334900729,1723633833677,-1065.72,9.726e-05,2]
[334900731,1723633833687,-171.46,9.848e-05,2]
[334900732,1723633833696,-37.09541378,9.901e-05,2]
[334900733,1723633833707,-168.27458622,9.901e-05,2]
[334900734,1723633833717,-155.0,0.0001002,2]
[334900735,1723633833726,-314.61803924,0.00010021,2]
[334900736,1723633833738,-85.38196076,0.00010021,2]
[334900737,1723633833747,-543.8866,0.0001004,2]
[334900738,1723633833758,-499.99,0.00010135,2]
[334900739,1723633833769,-693.98,0.00010135,2]
[334900740,1723633833780,-300.0,0.00010137,2]
[334900741,1723633833789,-299.99,0.00010138,2]
[334900742,1723633833798,-2.42759839,0.00010138,2]
[334900744,1723633838232,-281.50240161,0.00010138,2]
[334900745,1723633838242,-150.99,0.00010138,2]
[334900746,1723633838251,-174.17,0.0001014,2]
[334900747,1723633838261,-9999.99,0.0001014,2]
[334900748,1723633838270,-205.57,0.0001017,2]
[334900749,1723633838279,-700.0,0.000104,3]
[334900750,1723633838289,-719.21,0.00010459,2]
[334900751,1723633838298,-562.89,0.00010499,2]
[334900752,1723633838307,-820.77,0.00010499,2]
[334900753,1723633838317,-402.29295282,0.000105,3]
[334900754,1723633838329,-1097.70704718,0.000105,3]
[334900755,1723633838338,-258.96,0.00010578,2]
[334900756,1723633838348,-189.12,0.00010578,2]
[334900757,1723633838357,-2200.0,0.000106,3]
[334900758,1723633838367,-150.0,0.00010699,2]
[334900759,1723633838377,-3000.0,0.000107,3]
[334900760,1723633838386,-520.62149682,0.00010724,2]
[334900761,1723633838398,-1372.2,0.00010724,2]
[334900773,1723633838724,-4863.35621175,0.00010724,2]
[334900775,1723633838734,-3800.0,0.000108,3]
[334900777,1723633838743,-320.7457,0.0001088,2]
[334900779,1723633838752,-4482.98370155,0.000109,2]
[334900922,1723633840273,-4803.51979845,0.000109,2]
[334900924,1723633840283,-454.1136,0.000109,2]
[334900926,1723633840293,-14929.5334,0.000109,2]
[334900928,1723633840302,-6413.2225448,0.000109,2]
[334900930,1723633840311,-162.44631507,0.000109,2]
[334900931,1723633840321,-335.28071565,0.000109,2]
[334900933,1723633840330,-1102.6787823,0.000109,2]
[334900935,1723633840340,-700.0,0.000109,3]
[334900937,1723633840349,-3872.78717186,0.000109,2]
[334900939,1723633840359,-539.88225772,0.000109,2]
[334900941,1723633840368,-319.83927597,0.000109,2]
[334900943,1723633840378,-236.08887295,0.000109,2]
[334900945,1723633840387,-1000.0,0.00010921,2]
[334900947,1723633840397,-155.29,0.00010959,2]
[334900949,1723633840411,-1123.02405,0.00010969,2]
[334900951,1723633840421,-14002.29321523,0.0001098,2]
[334900953,1723633840432,-1289.90576999,0.0001098,2]
[334900955,1723633840443,-442.63614477,0.0001098,2]
[334900957,1723633840455,-12207.2163352,0.0001098,2]
[334901214,1723633843149,-1261.31414876,0.0001098,2]
[334901221,1723633843213,-292.35005528,0.0001098,2]
[334901223,1723633843225,-11278.26976818,0.0001098,2]
[334901225,1723633843235,-15180.60721108,0.0001099,3]
[334901227,1723633843248,-403.92333797,0.0001099,3]
[334901241,1723633843426,-5296.76582824,0.0001099,3]
[334901243,1723633843438,-300.0,0.0001099,3]
[334901244,1723633843450,-3581.547299,0.0001099,3]
[334901340,1723633844824,-10852.61019446,0.0001099,3]
[334901499,1723633846351,-2925.7355855,0.0001099,3]
[334901500,1723633846363,-7868.7315118,0.0001099,3]
[334901501,1723633846373,-257061.05759704,0.00011,2]
[334901502,1723633846382,-64583.79674736,0.00011,2]
[334901503,1723633846438,-269.65565113,0.00011,2]
[334901504,1723633846449,-12407.22964989,0.00011,2]
[334901505,1723633846460,-384.50318454,0.00011,2]
[334901506,1723633846525,-43309.43588548,0.00011,2]
[334901507,1723633846537,-369.15130269,0.00011,2]
[334901516,1723633846617,-1906.18600947,0.00011,2]
[334902918,1723634023811,150.0,9.499e-05,2]
[334902919,1723634023838,5.0,9.499e-05,2]
[334902921,1723634130338,300.0,0.00025,60]
[334902925,1723634160925,382.6727962,0.00025,60]
[334902928,1723634310576,150.0,9.487e-05,2]
[334902929,1723634310608,150.0,9.487e-05,2]
[334902930,1723634310636,150.0,9.487e-05,2]
[334902931,1723634310664,150.0,9.487e-05,2]
[334902932,1723634310693,105.65,9.487e-05,2]
[334902935,1723634566180,150.0,8.34e-05,2]
[334902936,1723634566209,32.5,8.34e-05,2]
[334902950,1723634906203,150.0,8.219e-05,2]
[334902951,1723634906229,150.0,8.219e-05,2]
[334902952,1723634906253,150.0,8.219e-05,2]
[334902953,1723634906278,150.0,8.219e-05,2]
[334902954,1723634906304,105.35,8.219e-05,2]
[334902963,1723634965874,150.0,8.219e-05,2]
[334902964,1723634965897,150.0,8.219e-05,2]
[334902965,1723634965919,93.27901704,8.219e-05,2]
[334902968,1723635032320,-673.28,9.739e-05,2]
[334902969,1723635032330,-200.0,9.74e-05,2]
[334902970,1723635032340,-200.0,9.74e-05,2]
[334902971,1723635032351,-500.0,9.878e-05,2]
[334902972,1723635032362,-158.28407902,9.91e-05,2]
[334902973,1723635032372,-300.0,9.962e-05,2]
[334902974,1723635032383,-192.40472273,0.0001,2]
[334902977,1723635032393,-550.0,0.0001,2]
[334902979,1723635032405,-803.68163958,0.0001,2]
[334902980,1723635032416,-258.8,0.00010143,2]
[334902981,1723635032426,-164.92593437,0.00010146,2]
[334902982,1723635032440,-155.07406563,0.00010146,2]
[334902983,1723635032451,-966.65,0.00010182,2]
[334902984,1723635032462,-200.0,0.000102,3]
[334902985,1723635032472,-250.0,0.00010246,2]
[334902986,1723635032482,-422.47,0.00010286,2]
[334902987,1723635032494,-300.0,0.00010299,2]
[334902988,1723635032506,-167.0,0.00010299,2]
[334902989,1723635032517,-500.0,0.000103,3]
[334902990,1723635032529,-864.1101,0.000103,2]
[334902991,1723635032540,-700.0,0.000104,3]
[334902992,1723635032550,-705.35,0.00010467,2]
[334902993,1723635032561,-600.0,0.00010478,2]
[334902994,1723635032573,-1000.0,0.000105,3]
[334902995,1723635032583,-1200.0,0.000106,3]
[334902996,1723635032592,-200.0,0.000107,3]
[334902998,1723635032602,-1000.0,0.000107,2]
[334903000,1723635032612,-200.0,0.000108,3]
[334903002,1723635032622,-2285.67614838,0.0001089,2]
[334903004,1723635032632,-4776.2036,0.000109,2]
[334903006,1723635032643,-4895.3218,0.000109,2]
[334903008,1723635032653,-1000.0,0.000109,2]
[334903010,1723635032663,-2918.3701,0.000109,2]
[334903012,1723635032674,-500.0,0.000109,2]
[334903014,1723635032685,-1000.0,0.000109,2]
[334903016,1723635032696,-2500.0,0.000109,2]
[334903018,1723635032707,-164.56788093,0.000109,2]
[334903020,1723635032718,-200.0,0.000109,3]
[334903022,1723635032730,-10070.45853314,0.000109,2]
[334903025,1723635032744,-1200.0,0.000109,2]
[334903027,1723635032761,-9115.15322599,0.000109,2]
[334903029,1723635032774,-5024.18995364,0.000109,2]
[334903030,1723635032789,-1174.98131028,0.000109,2]
[334903031,1723635032802,-608.7,0.000109,2]
[334903033,1723635032815,-272.88989561,0.000109,2]
[334903034,1723635032825,-437.91590601,0.000109,2]
[334903035,1723635032836,-27.55968838,0.000109,2]
[334903037,1723635038545,-288.02774,0.000109,2]
[334903038,1723635038557,-764.17708704,0.000109,2]
[334903039,1723635038568,-7745.5743437,0.000109,2]
[334903040,1723635038579,-188.69565719,0.000109,2]
[334903041,1723635038589,-113.96472998,0.00010959,2]
[334903042,1723635038601,-772.29527002,0.00010959,2]
[334903043,1723635038612,-250.0,0.00010959,2]
[334903044,1723635038624,-851.66,0.00010959,2]
[334903045,1723635038634,-499.99,0.0001099,2]
[334903046,1723635038645,-372.66984158,0.00010999,2]
[334903047,1723635038655,-26693.15607511,0.00011,2]
[334903048,1723635038668,-8355.461751,0.00011,2]
[334903049,1723635038680,-15751.9468996,0.00011,2]
[334903050,1723635038773,-504075.03760534,0.00011,2]
[334903051,1723635038787,-5065.1991,0.00011,2]
[334903052,1723635038800,-295.91665667,0.00011,2]
[334903053,1723635038813,-359.21135861,0.00011,2]
[334903055,1723635038828,-50640.80509513,0.00011,2]
[334903057,1723635038840,-33042.51290129,0.00011,2]
[334903059,1723635038853,-2549.60018892,0.00011,2]
[334903116,1723635040552,-286.4043048,0.00011,2]
[334903117,1723635040563,-634.41735599,0.00011,2]
[334903118,1723635040917,-148993.05244239,0.00011,2]
[334903119,1723635040927,-4714947.52286233,0.00011,2]
[334903120,1723635040937,-2255608.0831172,0.00011,2]
[334903121,1723635040950,-147015.39681923,0.00011,2]
[334903122,1723635040960,-260927.45237183,0.00011,2]
[334903124,1723635040969,-500.0,0.00011,2]
[334903126,1723635040980,-1000.0,0.00011,2]
[334903128,1723635040990,-1000.0,0.00011,2]
[334903130,1723635041000,-1000.0,0.00011,2]
[334903132,1723635041010,-1000.0,0.00011,2]
[334903134,1723635041020,-1000.0,0.00011,2]
[334903136,1723635041030,-890.02090787,0.00011,2]
[334903138,1723635041039,-151.0,0.00011,2]
[334903140,1723635041049,-151.0,0.00011,2]
[334903142,1723635041058,-1209345.31734348,0.00011,2]
[334903144,1723635041070,-722291.66009202,0.00011,2]
[334903146,1723635041082,-344475.0874631,0.00011,2]
[334903149,1723635041093,-487.43912,0.00011,2]
[334903385,1723635043502,-716.1018698,0.00011,2]
[334907451,1723635124566,1321.1837,9.639e-05,2]
[334907452,1723635324766,15485.224,9.64e-05,2]
[334907453,1723635489251,1084.55,8.219e-05,2]
[334907454,1723635525897,150.0,9.64e-05,2]
[334907455,1723635525920,150.0,9.64e-05,2]
[334907456,1723635525940,150.0,9.64e-05,2]
[334907457,1723635525962,150.0,9.64e-05,2]
[334907458,1723635525984,93.39394919,9.64e-05,2]
[334907459,1723635531789,1269.26687781,9.64e-05,2]
[334907460,1723635559477,249.06344801,9.64e-05,2]
[334907461,1723635559501,33.07716665,9.64e-05,2]
[334907464,1723635602195,150.0,9.64e-05,2]
[334907465,1723635602368,150.0,9.64e-05,2]
[334907466,1723635602548,150.0,9.64e-05,2]
[334907467,1723635602746,150.0,9.64e-05,2]
[334907468,1723635602914,150.0,9.64e-05,2]
[334907469,1723635603345,150.0,9.64e-05,2]
[334907470,1723635603516,150.0,9.64e-05,2]
[334907471,1723635603719,150.0,9.64e-05,2]
[334907472,1723635603904,150.0,9.64e-05,2]
[334907473,1723635604092,150.0,9.64e-05,2]
[334907474,1723635604304,150.0,9.64e-05,2]
[334907475,1723635604490,150.0,9.64e-05,2]
[334907476,1723635604721,150.0,9.64e-05,2]
[334907477,1723635604922,150.0,9.64e-05,2]
[334907478,1723635605130,150.0,9.64e-05,2]
[334907479,1723635605282,150.0,9.64e-05,2]
[334907480,1723635605476,150.0,9.64e-05,2]
[334907481,1723635605713,150.0,9.64e-05,2]
[334907482,1723635605888,150.0,9.64e-05,2]
[334907483,1723635606122,150.0,9.64e-05,2]
[334907484,1723635606303,150.0,9.64e-05,2]
[334907485,1723635606473,150.0,9.64e-05,2]
[334907486,1723635606648,150.0,9.64e-05,2]
[334907487,1723635606915,150.0,9.64e-05,2]
[334907488,1723635607249,202.39268906,9.64e-05,2]
[334907489,1723635628410,150.0,9.64e-05,2]
[334907490,1723635628435,150.0,9.64e-05,2]
[334907491,1723635628459,150.0,9.64e-05,2]
[334907492,1723635628482,150.0,9.64e-05,2]
[334907493,1723635628506,93.27656587,9.64e-05,2]
[334907494,1723635631776,1269.05175385,9.64e-05,2]
[334907495,1723635670185,287.77616414,9.64e-05,2]
[334907496,1723635670206,212.22383586,9.64e-05,2]
[334907497,1723635670644,979.0,9.64e-05,2]
[334907500,1723635843807,-150.0,0.00025402,120]
[334907501,1723635843833,-150.0,0.00025786,120]
[334907502,1723635843865,-150.0,0.00026947,120]
[334907503,1723635843891,-806246.53028161,0.00027,120]
[334907504,1723635843914,-1000.0,0.00027,120]
[334907506,1723635903170,359.81917028,0.00027,120]
[334907507,1723635913376,150.5,0.000178,120]
[334907508,1723635913867,150.5,0.0001779,120]
[334907509,1723635913945,150.5,0.000178,120]
[334907510,1723635914077,153.02,0.000178,120]
[334907511,1723635914345,150.5,0.0001778,120]
[334907512,1723635914850,150.5,0.0002269,120]
[334907513,1723635915080,150.5,0.0001779,120]
[334907514,1723635915342,150.5,0.0002268,120]
[334907515,1723635915637,150.5,0.0001778,120]
[334907516,1723635915819,150.5,0.0002267,120]
[334907517,1723635916106,150.5,0.0002269,120]
[334907518,1723635916332,205.22,0.0002269,120]
[334907519,1723635916606,150.5,0.0002268,120]
[334907520,1723635917139,150.5,0.0002267,120]
[334907521,1723635917627,150.5,0.0002269,120]
[334907522,1723635918240,203.17,0.0002268,120]
[334907523,1723635930952,150.0,0.00023097,120]
[334907524,1723635969902,300.0,0.00024392,120]
[334907525,1723635970335,306.98284526,0.00025745,120]
[334907526,1723635990779,150.0,0.00026489,120]
[334907527,1723635992062,1078.24,8.219e-05,2]
[334907528,1723636006435,-530.03750151,0.00030928,60]
[334907529,1723636006471,-837.42898835,0.00030928,30]
[334907530,1723636006499,-1000.0,0.00030928,30]
[334907531,1723636006524,-820.27103427,0.00030928,30]
[334907532,1723636006551,-1200.0,0.00030928,120]
[334907533,1723636006576,-828.11660427,0.00030928,30]
[334907534,1723636006601,-891.99967473,0.00030928,30]
[334907535,1723636006626,-900.0,0.00030928,30]
[334907536,1723636006651,-921.51430403,0.00030928,30]
[334907537,1723636006675,-679.21890568,0.00030928,31]
[334907538,1723636006700,-948.13904826,0.00030928,120]
[334907539,1723636006726,-319.13658768,0.00030928,120]
[334907540,1723636006752,-1000.0,0.00030928,60]
[334907541,1723636006777,-1000.0,0.00030928,30]
[334907542,1723636006802,-200.8339948,0.00030928,120]
[334907543,1723636006826,-1000.0,0.00030928,30]
[334907544,1723636006850,-586.83926918,0.00030928,120]
[334907545,1723636006875,-1000.0,0.00030928,30]
[334907546,1723636006900,-227.68726507,0.00030928,120]
[334907547,1723636006928,-847.63583226,0.00030928,30]
[334907548,1723636006957,-182.57652857,0.00030928,120]
[334907549,1723636006982,-1000.0,0.00030928,30]
[334907550,1723636007006,-1000.0,0.00030928,30]
[334907551,1723636007033,-951.36499567,0.00030928,120]
[334907552,1723636007057,-1221.68449065,0.00030928,120]
[334907553,1723636007082,-288.53515625,0.00030928,31]
[334907554,1723636007107,-1000.0,0.00030928,60]
[334907555,1723636007131,-1097.11830368,0.00030928,30]
[334907556,1723636007155,-756.0,0.00030928,120]
[334907557,1723636007180,-1065.35970694,0.00030928,120]
[334907558,1723636007204,-1000.0,0.00030928,30]
[334907559,1723636007233,-1000.0,0.00030928,60]
[334907560,1723636007256,-1000.0,0.00030928,30]
[334907561,1723636007279,-500.66221873,0.00030928,60]
[334907562,1723636007302,-1000.0,0.00030928,30]
[334907563,1723636007326,-1000.0,0.00030928,30]
[334907564,1723636007351,-1000.0,0.00030928,30]
[334907565,1723636007376,-800.55225436,0.00030928,30]
[334907566,1723636007400,-1000.0,0.00030928,60]
[334907567,1723636007424,-1000.0,0.00030928,30]
[334907568,1723636007452,-1000.0,0.00030928,60]
[334907569,1723636007478,-1000.0,0.00030928,60]
[334907570,1723636007503,-1000.0,0.00030928,30]
[334907571,1723636007527,-160.0,0.00030928,30]
[334907572,1723636007555,-1004.97074515,0.00030928,30]
[334907573,1723636007580,-1662.0,0.00030928,120]
[334907574,1723636007606,-2158.9297171,0.00030928,120]
[334907575,1723636007634,-1619.73559346,0.00030928,120]
[334907576,1723636007661,-2045.9776536,0.00030928,120]
[334907577,1723636007686,-1403.17769166,0.00030928,120]
[334907578,1723636007714,-1791.42943948,0.00030928,120]
[334907579,1723636007740,-1933.82627345,0.00030928,120]
[334907580,1723636007765,-1402.93715111,0.00030928,30]
[334907581,1723636007795,-50000.0,0.00030928,30]
[334907582,1723636007823,-50000.0,0.00030928,31]
[334907583,1723636007851,-50000.0,0.00030928,32]
[334907584,1723636007878,-50000.0,0.00030928,33]
[334907585,1723636007902,-2000.0,0.00030928,120]
[334907586,1723636007930,-164090.32786488,0.00030928,120]
[334907587,1723636007958,-500.0,0.00030928,120]
[334907588,1723636007984,-1894.06181957,0.00030928,120]
[334907589,1723636008029,-6694.25191656,0.00030928,30]
[334907590,1723636008056,-198660.69238537,0.00030928,30]
[334907591,1723636008082,-10001.0,0.00030928,120]
[334907592,1723636008109,-10030.0,0.00030928,30]
[334907593,1723636008136,-261.42559424,0.00030928,60]